Cogmind - Beta 13 @@@ ROGUE MODE // 2024.06.28 @ 08:32:34 Player: RAT Result: Destroyed by Y-45 Defender with Beam Rifle Performance ------------- Evolutions (1) 500 Regions Visited (3) 600 Robots Destroyed (1) 5 Value Destroyed (5) 5 Prototype IDs (0) 0 Alien Tech Used (0) 0 Bonus (200) 200 TOTAL SCORE: 1310 Bonus ------- Pacifist 200 Cogmind --------- Core Integrity 0/400 Matter 226/300 Energy 99/100 System Corruption 1% Temperature Cool (33) Movement Core (200) Ox3 Location -9/Materials Parts ------- > --- POWER (2) -------- (None) > --- PROPULSION (2) --- (None) > --- UTILITY (3) ------ Medium Storage Unit > --- WEAPON (2) ------- (None) > --- INVENTORY (10) --- Aluminum Leg Aluminum Leg Core Shielding Medium Laser Light Cannon Peak State ------------ > --- POWER ------------ Light Ion Engine > --- PROPULSION ------- Aluminum Leg Aluminum Leg > --- UTILITY ---------- Small Storage Unit > --- WEAPON ----------- Assault Rifle > --- INVENTORY -------- Wheel Compact Wheel Medium Laser [Rating: 5] Favorites ----------- Power Light Ion Engine Engine Light Ion Engine Propulsion Aluminum Leg Leg Aluminum Leg Wheel Wheel Utility Medium Storage Unit Storage Medium Storage Unit Weapon Assault Rifle Ballistic Gun Assault Rifle Launcher Grenade Launcher Build | -11 -10 -10 -9 ------- Run | Yrd Mat Min Mat Slots Evolved 2 | . . . 2 Power 1 | . . . 1 Propulsion . | . . . . Utility 1 | . . . 1 Weapon . | . . . . Parts Attached 11 | 7 1 2 1 Power 1 | 1 . . . Engine 1 | 1 . . . Core . | . . . . Reactor . | . . . . Propulsion 6 | 4 . 2 . Treads . | . . . . Leg 2 | 2 . . . Wheel 4 | 2 . 2 . Hover . | . . . . Flight . | . . . . Utility 2 | 1 1 . . Device . | . . . . Storage 2 | 1 1 . . Processor . | . . . . Hackware . | . . . . Protection . | . . . . Artifact . | . . . . Weapon 2 | 1 . . 1 Energy Gun . | . . . . Energy Cannon . | . . . . Ballistic Gun 1 | 1 . . . Ballistic Cannon . | . . . . Launcher 1 | . . . 1 Special Weapon . | . . . . Impact Weapon . | . . . . Slashing Weapon . | . . . . Piercing Weapon . | . . . . Special Melee Weapon . | . . . . Unidentified Prototypes . | . . . . Parts Lost 5 | . . . 5 Power 1 | . . . 1 Propulsion 2 | . . . 2 Utility . | . . . . Weapon 2 | . . . 2 Highest Loss Streak 4 | . . . 4 To Critical Strikes . | . . . . Average Slot Usage (%) 65 | . 71 71 45 Engine 12 | . 14 14 5 Leg 14 | . 28 14 . Wheel 11 | . . 13 19 Storage 13 | . 14 14 11 Ballistic Gun 12 | . 14 14 8 Naked Turns . | . . . . Heaviest Build 15 | 10 15 15 15 Greatest Support 26 | 26 20 26 26 Greatest Overweight (x) 3 | . . . 3 Average Overweight (x) . | . . . . Largest Inventory Capacity 10 | 8 10 10 10 Average Capacity 9 | 6 8 10 10 Most Carried 6 | 5 6 6 6 Average Carried 5 | 3 4 6 5 Final Capacity 10 | 8 10 10 10 Final Carried 6 | 3 6 6 5 Class Distribution -------------------- 100% | Mutant Dominant Class ---------------- Mutant | -10/Materials Mutant | -10/Mines Mutant | -9/Materials Resources | -11 -10 -10 -9 ----------- Run | Yrd Mat Min Mat Matter Collected 244 | 222 . 22 . Remotely . | . . . . Salvage Created 13 | . . . 13 Parts 1 | . . . 1 Haulers Intercepted . | . . . . Recyclers Shooed . | . . . . Parts Field Recycled . | . . . . Retrieved Matter . | . . . . Parts Self-Destructed . | . . . . Prevented . | . . . . Kills | -11 -10 -10 -9 ------- Run | Yrd Mat Min Mat Combat Hostiles Destroyed . | . . . . Classes Destroyed 1 | . . . 1 Builder 1 | . . . 1 Best Kill Streak 1 | . . . 1 Combat Bots Only . | . . . . Max Kills in Single Turn 1 | . . . 1 Gunslinging . | . . . . Exploded . | . . . . Melee . | . . . . Uniques/NPCs Destroyed . | . . . . Combat | -11 -10 -10 -9 -------- Run | Yrd Mat Min Mat Hostile Shots Fired 88 | . . 20 68 Missed 30 | . . 9 21 Damage Taken 792 | . . 143 649 Core 423 | . . 11 412 Absorbed by Shields . | . . . . Core Remaining (%) 97 | 100 . 95 . Volleys Fired 3 | . . 1 2 Largest 1 | . . 1 1 Hottest 30 | . . 20 30 Shots Fired 3 | . . 1 2 Gun 1 | . . 1 . Cannon . | . . . . Launcher 2 | . . . 2 Special . | . . . . Kinetic 1 | . . 1 . Thermal . | . . . . Explosive 2 | . . . 2 Electromagnetic . | . . . . Robot Hit Streak . | . . . . Robot Miss Streak . | . . . . Penetration Max . | . . . . Secondary Targets . | . . . . Shots Hit Robots . | . . . . Core Hits 4 | . . . 4 Critical Kills . | . . . . Critical Parts Destroyed . | . . . . Critical Strikes . | . . . . Melee Attacks . | . . . . Impact . | . . . . Slashing . | . . . . Piercing . | . . . . Sneak Attacks . | . . . . Combat Hostiles . | . . . . Follow-up Attacks . | . . . . Damage Inflicted 125 | . . . 125 Guns . | . . . . Cannons . | . . . . Explosions 125 | . . . 125 Melee . | . . . . Ramming . | . . . . Kinetic . | . . . . Thermal . | . . . . Explosive 125 | . . . 125 Electromagnetic . | . . . . Impact . | . . . . Slashing . | . . . . Piercing . | . . . . Highest Corruption 2 | . 2 2 1 Average Corruption 1 | . 1 2 1 Corruption Purged . | . . . . Corruption Blocked . | . . . . Effects 3 | . . 3 . Matter Fused 1 | . . 1 . Energy Discharges 1 | . . 1 . Data Loss (minor) 1 | . . 1 . Overload Shots . | . . . . Overflow Damage . | . . . . Projectiles . | . . . . Explosions . | . . . . Melee . | . . . . Knockbacks . | . . . . Impact . | . . . . Kinetic . | . . . . Secondary . | . . . . Self-Inflicted Damage 6 | . . . 6 Shots 1 | . . . 1 Rammed . | . . . . Targets Rammed . | . . . . Kicked . | . . . . Crushed . | . . . . Highest Temperature 11 | . . . 11 Average Temperature 9 | . . . 9 Received Heat Transfer 345 | . . 81 264 Siege Activations . | . . . . Robots Corrupted . | . . . . Combat Hostiles . | . . . . Parts Fried . | . . . . Impact Corruptions . | . . . . Robots Melted . | . . . . Combat Hostiles . | . . . . Parts Melted . | . . . . Heat Transferred . | . . . . Parts Sabotaged . | . . . . Parts Stolen . | . . . . Parts Stripped . | . . . . Power Chain Reactions . | . . . . Alert | -11 -10 -10 -9 ------- Run | Yrd Mat Min Mat Peak Influence 60 | . . 60 43 Initial 23 | . . . 23 Average 16 | . . 21 28 Maximum Alert Level . | . . . . Low Security (%) 100 | 100 100 100 100 Level 1 . | . . . . Level 2 . | . . . . Level 3 . | . . . . Level 4 . | . . . . Level 5 . | . . . . High Security . | . . . . Max Security . | . . . . Squads Dispatched . | . . . . Investigation . | . . . . Extermination . | . . . . Reinforcement . | . . . . Assault . | . . . . Garrison . | . . . . Intercept . | . . . . Searches Triggered . | . . . . Construction Impeded . | . . . . Haulers Reinforced . | . . . . Active Scanning Responses . | . . . . Cargo Convoy Interrupts . | . . . . Stealth | -11 -10 -10 -9 --------- Run | Yrd Mat Min Mat Distress Signals . | . . . . Communications Jammed . | . . . . Distress Signals . | . . . . Times Spotted 11 | . . 4 7 Peak Tracking Total 6 | . . 2 6 Tactical Retreats 2 | . . 2 . Traps | -11 -10 -10 -9 ------- Run | Yrd Mat Min Mat Traps Triggered 3 | . 2 . 1 Indirectly . | . . . . Trap Hack Attempts . | . . . . Triggered . | . . . . Disarmed . | . . . . Reprogrammed . | . . . . Reused . | . . . . Traps Extracted . | . . . . Installed . | . . . . Triggered . | . . . . Machines | -11 -10 -10 -9 ---------- Run | Yrd Mat Min Mat Machines Disabled . | . . . . Max in Single Turn . | . . . . Machines Repaired . | . . . . Machines Dismantled . | . . . . Machines Sabotaged . | . . . . Overloaded Fab Kills . | . . . . Hacking | -11 -10 -10 -9 --------- Run | Yrd Mat Min Mat Machines Accessed . | . . . . Terminals . | . . . . Fabricators . | . . . . Repair Stations . | . . . . Recycling Units . | . . . . Scanalyzers . | . . . . Garrison Access . | . . . . Total Hacks . | . . . . Successful . | . . . . Failed . | . . . . Catastrophic . | . . . . Database Lockouts . | . . . . Manual . | . . . . Terminals . | . . . . Fabricators . | . . . . Repair Stations . | . . . . Recycling Units . | . . . . Scanalyzers . | . . . . Garrison Access . | . . . . Terminal Hacks . | . . . . Fabricator Hacks . | . . . . Repair Station Hacks . | . . . . Recycling Unit Hacks . | . . . . Scanalyzer . | . . . . Garrison Access Hacks . | . . . . Unauthorized Hacks . | . . . . Terminals . | . . . . Fabricators . | . . . . Repair Stations . | . . . . Recycling Units . | . . . . Scanalyzers . | . . . . Garrison Access . | . . . . Data Cores Recovered . | . . . . Used . | . . . . Hacking Detections . | . . . . Full Trace Events . | . . . . Feedback Events . | . . . . Feedback Blocked . | . . . . Robot Schematics Acquired . | . . . . Robots Built . | . . . . Authchips . | . . . . Time . | . . . . Total Robot Build Rating . | . . . . Part Schematics Acquired . | . . . . Parts Built . | . . . . Authchips . | . . . . Time . | . . . . Total Part Build Rating . | . . . . Parts Repaired . | . . . . Time . | . . . . Parts Recycled . | . . . . Recycled Matter . | . . . . Retrieved Matter . | . . . . Retrieved Components . | . . . . Parts Scanalyzed . | . . . . Part Schematics Acquired . | . . . . Parts Damaged . | . . . . Bothacking | -11 -10 -10 -9 ------------ Run | Yrd Mat Min Mat Used RIF Installer . | . . . . Robots Hacked . | . . . . Non-combat . | . . . . Combat . | . . . . Robot Hacks Applied . | . . . . Relay Couplers Released . | . . . . Fabnet Peak Effective % . | . . . . Robots Rewired . | . . . . Allies Hacked . | . . . . Hacks Repelled . | . . . . Allies | -11 -10 -10 -9 -------- Run | Yrd Mat Min Mat Total Allies . | . . . . Largest Group . | . . . . Highest-Rated Group . | . . . . Highest-Rated Ally . | . . . . Total Orders . | . . . . Ally Attacks . | . . . . Total Damage . | . . . . Kills . | . . . . Allies Corrupted . | . . . . Allies Melted . | . . . . Intel | -11 -10 -10 -9 ------- Run | Yrd Mat Min Mat Robot Analysis Total . | . . . . Derelict Logs Recovered 1 | . . 1 . Drone Launches . | . . . . Drone Recoveries . | . . . . Exploration | -11 -10 -10 -9 ------------- Run | Yrd Mat Min Mat Turns Passed 576 | 71 112 290 103 Spaces Moved 527 | 59 89 276 103 Core 19 | 13 . . 6 Treads . | . . . . Legs 246 | 33 89 124 . Wheels 262 | 13 . 152 97 Hover . | . . . . Flight . | . . . . Fastest Speed 50 | 50 120 90 90 Average Speed 104 | 97 120 103 96 Slowest Speed 200 | 120 120 120 200 Overloaded Moves . | . . . . Propulsion Burnouts . | . . . . Robots Hopped . | . . . . Cave-ins Triggered . | . . . . Exploration Rate (%) 26 | 3 17 75 12 Regions Visited 3 Branch Regions 1 Pre-discovered Areas . | . . . . Known Exits Taken . | . . . . Unknown Exits Taken 3 | 1 1 1 . Scrap Searched 1 | . . 1 . Spaces Dug . | . . . . Terrain Destroyed 12 | . . . 12 Melee . | . . . . Projectile . | . . . . AOE 12 | . . . 12 Terrain Rammed . | . . . . Walls Destroyed . | . . . . Machines Disabled . | . . . . Actions | -11 -10 -10 -9 --------- Run | Yrd Mat Min Mat Total 548 | 70 94 278 106 Wait . | . . . . Move 524 | 58 88 275 103 Hop . | . . . . Pick Up 9 | 5 4 . . Fast Attach 3 | 3 . . . Attach 3 | 2 . . 1 Detach . | . . . . Swap 5 | 2 1 2 . Drop 1 | . 1 . . Fire 3 | . . 1 2 Melee . | . . . . Ram . | . . . . Kick . | . . . . Crush . | . . . . Escape Stasis . | . . . . Rewire . | . . . . Trap . | . . . . Miscellaneous . | . . . . Route ------- -11/Scrapyard -10/Materials -10/Mines -9/Materials History --------- Turn | Location | Event 9 | -11/Scrapyard | Discovered new exit (range 15) 72 | -11/Scrapyard | Entered Materials 125 | -10/Materials | Discovered new exit (range 8) 184 | -10/Materials | Entered Mines 210 | -10/Mines | Learned Materials terminal intel 254 | -10/Mines | Joined a pair of Derelicts in attacking an 0b10 outpost 311 | -10/Mines | Build established: Mutant 466 | -10/Mines | Discovered new exit (range 8) 474 | -10/Mines | Entered Materials 474 | -9/Materials | Evolved 2 slots: Power x1, Utility x1 475 | -9/Materials | Loaded intel: 12 terminal locations 567 | -9/Materials | Core integrity fell below 50% 574 | -9/Materials | Core integrity fell below 20% 577 | -9/Materials | Destroyed by Y-45 Defender with Beam Rifle Last Messages --------------- 00447_ Acquired 22 matter. 00466_ EXIT=FOUND PARAMETERS=POWER+1,UTILITY+1 LOCATION=UNKNOWN GOAL=ESCAPE Loading Materials terminal intel (x12)... 00524_ Lgt. Ion Engine destroyed. 00551_ U-05 Engineer builds a Door. 00551_ Critical hit (Burn: +37). 00552_ Triggered Shock Trap. 00552_ The floor emits a surge of raw power. 00552_ System corrupted (+1). 00557_ U-05 Engineer lays Concrete. 00558_ Assault Rifle destroyed. 00562_ Com. Wheel destroyed. 00562_ Terminal disabled. 00563_ U-05 Engineer destroyed. 00563_ Wheel destroyed. 00565_ Grenade Launcher destroyed. 00577_ Critical hit (Burn: +37). Map ----- +----------------------------------------------------+ | ?????????????????????????????????????????????????? | | ?????????????????????????????????????????????????? | | ?????????????????????????????????????????????????? | | ?????????????????????????????????????????????????? | | ?????????????????????????????????????????????????? | | ?????????????????????????????????????????????????? | | ?????????????????????????????????????????????????? | | ????#????????????????????????????????????????????? | | ???# ????????????????????????????????????????????? | | ???# ????????????????????????????????????????????? | | ???+ ???????????????????????????????????????????? | | ???# ???????????????????????????????????????????? | | ???# ???""T""???????????????????????????????????? | | ???# ???"""""???????????###?????????????????????? | | ???# ???????????######### #?????????????????????? | | ???# ???????????# #?????????????????????? | | ???# ???????????# "" ###### ?????? | | ??## ##?????????# " Y/ ?????? | | ??# ########### "" ###### ?????? | | ??# # [[ #????????????????????? | | ??# ?# r[ Y##????????????????????? | | ???? #?# ?# [ g ##????????????????????? | | ?????# #?# # !% g #????????????????????? | | ?????# #?# ####Y ###???????????????????? | | ?????# #?# #####???????????????? | | ?????# #?# @ +?????????? | | ?????# ### #?#####+##### ## #?????????? | | ?????# #?# #??# #? w #?? ??????????? | | ?????# #?# #??# #?""" #???? ????????????? | | ###### ### #### """# """ #?????????????????? | | # ## + """# """ #?????????????????? | | # ##+##### """# ] #?????????????????? | | """ # # # # #?????????????????? | | """ + # ######## #?????????????????? | | """ # # " #??????#?###?####?????????????????? | | # # """ #?????????????????????????????????? | | # # "" #?????????????????????????????????? | | # # """ #?????????????????????????????????? | | ##### # "" #?????????????????????????????????? | | ????# # """ #?????????????????????????????????? | | ????# # ""??#?????????????????????????????????? | | ????# # """???????????????????????????????????? | | ????# # "????????????????????????????????????? | | ##### # ?????????????????????????????????????? | | # # ?????????????????????????????????????? | | # ####?????????????????????????????????????? | | # #????????????????????????????????????????? | | ####+#####??????????????????????????""???????????? | | # #??????????????????????????""???????????? | | # """ #??????????????????????????"T???????????? | +----------------------------------------------------+ Best States ------------- Heat Dissipation 28 Energy Generation 10 Energy Capacity 125 Matter Stores 252 Matter Capacity 300 Sight Range 16 Terrain Scan Density 10 Evasion (%) 55 Item Schematics ----------------- None Robot Schematics ------------------ None Fabricated ------------ Nothing Alien Tech Used ----------------- None Achievements -------------- None Challenges ------------ None Game ------ Seed TractorHoverMicroactuators Manual? 0 Play Time 00:06:12 Cumulative 12.0 hours Start 2024.06.28 @ 08:26:49 End 2024.06.28 @ 08:32:34 Sessions 1 Manual Loads 0 Difficulty Rogue Special Mode None Game No. 54 Rogue 54 Adventurer 0 Explorer 0 Win Type - Total 0 Types 0/0/0/0/0/0/0/0/0 Lore% 3 Gallery% 17 Achievement% 12 Wizard Run 0 Options --------- Layout 1 ASCII 0 Keyboard 0 Movement Mouse Keybinds 0 Fullscreen 1 Font 24/Smallcaps Map View 50x35 Zoom Use 0% Tactical HUD 1 Map Filters NONE Filters NONE Steam 1 RUN: 4a2606cc-6de0-4377-8896-581ecdd8ce8b